[Event "Titled Tuesday Blitz May 10 Early 2022"]
[White "Xiong, Jeffery"]
[Black "Maximov, Dmitry"]
[WhiteFideId "2047640"]
[BlackFideId "14105659"]
[WhiteElo "2727"]
[BlackElo "2494"]
[Result "1-0"]
[Round "04"]
[TimeControl "180+1"]
[Date "2022.05.10"]
[WhiteClock "0:00:55"]
[BlackClock "0:00:06"]

1. e4 {[%clk 0:03:00]}  c5 {[%clk 0:02:59]} 2. Nf3 {[%clk 0:03:01]}  d6 {[%clk 0:02:59]} 3. Nc3 {[%clk 0:03:01]}  Nc6 {[%clk 0:02:58]} 4. d4 {[%clk 0:02:58]}  cxd4 {[%clk 0:02:58]} 5. Nxd4 {[%clk 0:02:59]}  Nf6 {[%clk 0:02:59]} 6. Bg5 {[%clk 0:03:00]}  e6 {[%clk 0:02:59]} 7. Qd3 {[%clk 0:03:00]}  a6 {[%clk 0:02:58]} 8. O-O-O {[%clk 0:03:00]}  Bd7 {[%clk 0:02:58]} 9. f4 {[%clk 0:02:59]}  h6 {[%clk 0:02:55]} 10. Bh4 {[%clk 0:02:52]}  g5 {[%clk 0:02:34]} 11. fxg5 {[%clk 0:02:32]}  Ng4 {[%clk 0:02:29]} 12. Nxc6 {[%clk 0:02:25]}  Bxc6 {[%clk 0:02:23]} 13. Be2 {[%clk 0:02:26]}  Ne5 {[%clk 0:02:11]} 14. Qe3 {[%clk 0:02:18]}  Be7 {[%clk 0:02:10]} 15. Kb1 {[%clk 0:02:19]}  hxg5 {[%clk 0:02:06]} 16. Bg3 {[%clk 0:02:18]}  Qa5 {[%clk 0:02:04]} 17. Rhf1 {[%clk 0:02:12]}  Rh7 {[%clk 0:01:42]} 18. a3 {[%clk 0:02:11]}  O-O-O {[%clk 0:01:40]} 19. Qg1 {[%clk 0:02:01]}  Rdh8 {[%clk 0:01:22]} 20. h3 {[%clk 0:01:59]}  Qc7 {[%clk 0:01:14]} 21. Bf2 {[%clk 0:01:57]}  b5 {[%clk 0:01:12]} 22. Bd4 {[%clk 0:01:53]}  f6 {[%clk 0:01:03]} 23. Bxe5 {[%clk 0:01:38]}  fxe5 {[%clk 0:01:02]} 24. Bg4 {[%clk 0:01:39]}  Bd7 {[%clk 0:01:02]} 25. Rd3 {[%clk 0:01:33]}  Kb7 {[%clk 0:00:58]} 26. Rdf3 {[%clk 0:01:29]}  Qb6 {[%clk 0:00:36]} 27. Qh2 {[%clk 0:01:29]}  Bd8 {[%clk 0:00:25]} 28. Qg3 {[%clk 0:01:27]}  Qc6 {[%clk 0:00:23]} 29. Rf8 {[%clk 0:01:12]}  Ba5 {[%clk 0:00:20]} 30. Rxh8 {[%clk 0:01:05]}  Rxh8 {[%clk 0:00:19]} 31. Rf7 {[%clk 0:01:06]}  Bxc3 {[%clk 0:00:18]} 32. Bxe6 {[%clk 0:01:02]}  Bd4 {[%clk 0:00:11]} 33. Bd5 {[%clk 0:01:01]}  Kb6 {[%clk 0:00:08]} 34. Bxc6 {[%clk 0:01:01]}  Bxc6 {[%clk 0:00:09]} 35. Qxg5 {[%clk 0:00:59]}  Bxe4 {[%clk 0:00:08]} 36. Qe7 {[%clk 0:00:59]}  Ka5 {[%clk 0:00:07]} 37. Qxd6 {[%clk 0:00:55]}  Rc8 {[%clk 0:00:06]} 38. b4+ {[%clk 0:00:55]} 1-0


[Site "https://www.chess.com"]

[Event "Titled Tuesday Blitz May 10 Early 2022"]
[White "Xu, Yi"]
[Black "Karacsonyi, Gellert"]
[WhiteFideId "8605564"]
[BlackFideId "764620"]
[WhiteElo "2471"]
[BlackElo "2187"]
[Result "1-0"]
[Round "04"]
[TimeControl "180+1"]
[Date "2022.05.10"]
[WhiteClock "0:00:15"]
[BlackClock "0:00:01"]

1. e4 {[%clk 0:02:58]}  c5 {[%clk 0:02:59]} 2. Nf3 {[%clk 0:02:59]}  Nc6 {[%clk 0:02:59]} 3. Bb5 {[%clk 0:02:58]}  g6 {[%clk 0:02:59]} 4. O-O {[%clk 0:02:57]}  Bg7 {[%clk 0:02:59]} 5. Re1 {[%clk 0:02:57]}  e5 {[%clk 0:02:59]} 6. Bxc6 {[%clk 0:02:56]}  dxc6 {[%clk 0:03:00]} 7. a3 {[%clk 0:02:54]}  Qe7 {[%clk 0:02:58]} 8. b4 {[%clk 0:02:53]}  b6 {[%clk 0:02:54]} 9. bxc5 {[%clk 0:02:52]}  bxc5 {[%clk 0:02:47]} 10. d3 {[%clk 0:02:38]}  Nf6 {[%clk 0:02:45]} 11. a4 {[%clk 0:02:28]}  Nd7 {[%clk 0:02:41]} 12. Nbd2 {[%clk 0:02:26]}  Nf8 {[%clk 0:02:41]} 13. Nc4 {[%clk 0:02:23]}  Bg4 {[%clk 0:02:40]} 14. Rb1 {[%clk 0:02:20]}  Ne6 {[%clk 0:01:55]} 15. Rb7 {[%clk 0:02:08]}  Qd8 {[%clk 0:01:55]} 16. h3 {[%clk 0:01:52]}  Bxf3 {[%clk 0:01:54]} 17. Qxf3 {[%clk 0:01:52]}  O-O {[%clk 0:01:54]} 18. Be3 {[%clk 0:01:48]}  Nd4 {[%clk 0:01:07]} 19. Bxd4 {[%clk 0:01:48]}  cxd4 {[%clk 0:01:07]} 20. a5 {[%clk 0:01:38]}  Qg5 {[%clk 0:00:59]} 21. Qg4 {[%clk 0:01:19]}  Qd8 {[%clk 0:00:50]} 22. a6 {[%clk 0:01:11]}  f5 {[%clk 0:00:49]} 23. exf5 {[%clk 0:01:09]}  Rxf5 {[%clk 0:00:50]} 24. Reb1 {[%clk 0:01:03]}  Qf6 {[%clk 0:00:30]} 25. Rb8+ {[%clk 0:00:47]}  Rxb8 {[%clk 0:00:30]} 26. Rxb8+ {[%clk 0:00:48]}  Bf8 {[%clk 0:00:30]} 27. Qe2 {[%clk 0:00:40]}  c5 {[%clk 0:00:29]} 28. g4 {[%clk 0:00:31]}  Qg5 {[%clk 0:00:08]} 29. h4 {[%clk 0:00:22]}  Qc1+ {[%clk 0:00:07]} 30. Qf1 {[%clk 0:00:20]}  Qxf1+ {[%clk 0:00:06]} 31. Kxf1 {[%clk 0:00:21]}  Rf6 {[%clk 0:00:03]} 32. Nxe5 {[%clk 0:00:21]}  Kg7 {[%clk 0:00:01]} 33. Nd7 {[%clk 0:00:15]} 1-0


[Site "https://www.chess.com"]

[Event "Titled Tuesday Blitz May 10 Early 2022"]
[White "Zhigalko, Sergei"]
[Black "Hua, Lefong"]
[WhiteFideId "13502956"]
[BlackFideId "2602253"]
[WhiteElo "2662"]
[BlackElo "2610"]
[Result "1-0"]
[Round "04"]
[TimeControl "180+1"]
[Date "2022.05.10"]
[WhiteClock "0:00:01"]
[BlackClock "0:00:03"]

1. e4 {[%clk 0:03:00]}  c5 {[%clk 0:02:59]} 2. Nf3 {[%clk 0:03:00]}  g6 {[%clk 0:02:58]} 3. c3 {[%clk 0:03:01]}  Nc6 {[%clk 0:02:59]} 4. d4 {[%clk 0:03:01]}  d5 {[%clk 0:02:58]} 5. exd5 {[%clk 0:02:51]}  Qxd5 {[%clk 0:02:54]} 6. Na3 {[%clk 0:02:51]}  Bg4 {[%clk 0:02:50]} 7. Bc4 {[%clk 0:02:14]}  Qe4+ {[%clk 0:02:42]} 8. Be3 {[%clk 0:02:14]}  cxd4 {[%clk 0:02:13]} 9. cxd4 {[%clk 0:01:38]}  Bh6 {[%clk 0:01:41]} 10. Qb3 {[%clk 0:01:01]}  Bxf3 {[%clk 0:01:16]} 11. Bxf7+ {[%clk 0:01:01]}  Kf8 {[%clk 0:01:11]} 12. gxf3 {[%clk 0:01:02]}  Qf5 {[%clk 0:00:45]} 13. Bxg8 {[%clk 0:00:29]}  Bxe3 {[%clk 0:00:41]} 14. fxe3 {[%clk 0:00:28]}  Rxg8 {[%clk 0:00:38]} 15. Qxb7 {[%clk 0:00:23]}  Rc8 {[%clk 0:00:27]} 16. Rc1 {[%clk 0:00:23]}  Qe6 {[%clk 0:00:15]} 17. Kf2 {[%clk 0:00:17]}  Kg7 {[%clk 0:00:15]} 18. Rhd1 {[%clk 0:00:09]}  Rgf8 {[%clk 0:00:15]} 19. Nc4 {[%clk 0:00:05]}  Qh3 {[%clk 0:00:12]} 20. Nd2 {[%clk 0:00:05]}  Qxh2+ {[%clk 0:00:11]} 21. Ke1 {[%clk 0:00:05]}  Qh1+ {[%clk 0:00:09]} 22. Ke2 {[%clk 0:00:06]}  Qh2+ {[%clk 0:00:08]} 23. Kd3 {[%clk 0:00:06]}  Ne5+ {[%clk 0:00:07]} 24. dxe5 {[%clk 0:00:02]}  Rfd8+ {[%clk 0:00:07]} 25. Ke4 {[%clk 0:00:03]}  Rxc1 {[%clk 0:00:03]} 26. Qxe7+ {[%clk 0:00:03]}  Kh6 {[%clk 0:00:03]} 27. Rxc1 {[%clk 0:00:03]}  Rxd2 {[%clk 0:00:03]} 28. Rc7 {[%clk 0:00:01]} 1-0


[Site "https://www.chess.com"]

[Event "Titled Tuesday Blitz May 10 Early 2022"]
[White "Zlatin, Alexander"]
[Black "parintele_chess"]
[WhiteFideId "2810549"]
[WhiteElo "2228"]
[BlackElo "2218"]
[Result "1/2-1/2"]
[Round "04"]
[TimeControl "180+1"]
[Date "2022.05.11"]
[WhiteClock "0:00:04"]
[BlackClock "0:00:03"]

1. d4 {[%clk 0:03:00]}  d5 {[%clk 0:02:59]} 2. Nc3 {[%clk 0:03:00]}  c5 {[%clk 0:02:56]} 3. Nf3 {[%clk 0:02:54]}  Nc6 {[%clk 0:02:53]} 4. Bf4 {[%clk 0:02:52]}  Nf6 {[%clk 0:02:51]} 5. e3 {[%clk 0:02:51]}  a6 {[%clk 0:02:50]} 6. dxc5 {[%clk 0:02:48]}  Bg4 {[%clk 0:02:39]} 7. Be2 {[%clk 0:02:43]}  e6 {[%clk 0:02:29]} 8. Ne5 {[%clk 0:02:36]}  Bxe2 {[%clk 0:02:28]} 9. Qxe2 {[%clk 0:02:36]}  Bxc5 {[%clk 0:02:22]} 10. O-O {[%clk 0:02:34]}  O-O {[%clk 0:02:18]} 11. Rad1 {[%clk 0:02:34]}  Bd6 {[%clk 0:02:12]} 12. Nxc6 {[%clk 0:02:15]}  bxc6 {[%clk 0:02:13]} 13. Bxd6 {[%clk 0:02:14]}  Qxd6 {[%clk 0:02:12]} 14. e4 {[%clk 0:02:15]}  Qf4 {[%clk 0:01:51]} 15. g3 {[%clk 0:02:10]}  Qg4 {[%clk 0:01:36]} 16. f3 {[%clk 0:02:02]}  Qh5 {[%clk 0:01:25]} 17. e5 {[%clk 0:01:52]}  Nd7 {[%clk 0:01:21]} 18. f4 {[%clk 0:01:52]}  Qxe2 {[%clk 0:01:21]} 19. Nxe2 {[%clk 0:01:53]}  Nc5 {[%clk 0:01:21]} 20. Nd4 {[%clk 0:01:51]}  Rfc8 {[%clk 0:01:16]} 21. f5 {[%clk 0:01:49]}  g6 {[%clk 0:01:02]} 22. fxe6 {[%clk 0:01:42]}  Nxe6 {[%clk 0:01:01]} 23. Rf6 {[%clk 0:01:33]}  Nxd4 {[%clk 0:00:56]} 24. Rxd4 {[%clk 0:01:34]}  Rab8 {[%clk 0:00:48]} 25. b3 {[%clk 0:01:34]}  Rb7 {[%clk 0:00:46]} 26. Ra4 {[%clk 0:01:23]}  Rb6 {[%clk 0:00:35]} 27. e6 {[%clk 0:01:13]}  Rf8 {[%clk 0:00:25]} 28. Raf4 {[%clk 0:01:08]}  Rb7 {[%clk 0:00:20]} 29. Kf2 {[%clk 0:01:04]}  Re7 {[%clk 0:00:16]} 30. exf7+ {[%clk 0:00:37]}  Rexf7 {[%clk 0:00:16]} 31. Rxc6 {[%clk 0:00:37]}  Rxf4+ {[%clk 0:00:16]} 32. gxf4 {[%clk 0:00:38]}  Rxf4+ {[%clk 0:00:16]} 33. Kg3 {[%clk 0:00:39]}  Rd4 {[%clk 0:00:13]} 34. Rxa6 {[%clk 0:00:37]}  Rd2 {[%clk 0:00:14]} 35. Rc6 {[%clk 0:00:37]}  d4 {[%clk 0:00:12]} 36. Kf3 {[%clk 0:00:08]}  Rxh2 {[%clk 0:00:08]} 37. a4 {[%clk 0:00:09]}  Rh5 {[%clk 0:00:06]} 38. Rc4 {[%clk 0:00:08]}  Rd5 {[%clk 0:00:05]} 39. Ke4 {[%clk 0:00:09]}  Rd8 {[%clk 0:00:05]} 40. Rxd4 {[%clk 0:00:09]}  Re8+ {[%clk 0:00:05]} 41. Kd3 {[%clk 0:00:09]}  h5 {[%clk 0:00:05]} 42. a5 {[%clk 0:00:10]}  Kg7 {[%clk 0:00:04]} 43. a6 {[%clk 0:00:10]}  g5 {[%clk 0:00:03]} 44. b4 {[%clk 0:00:10]}  g4 {[%clk 0:00:03]} 45. b5 {[%clk 0:00:10]}  g3 {[%clk 0:00:03]} 46. Rd5 {[%clk 0:00:06]}  Kg6 {[%clk 0:00:03]} 47. Rd6+ {[%clk 0:00:05]}  Kg5 {[%clk 0:00:03]} 48. Rd7 {[%clk 0:00:06]}  Kg6 {[%clk 0:00:03]} 49. Rd6+ {[%clk 0:00:04]}  Kg5 {[%clk 0:00:03]} 50. Rd5+ {[%clk 0:00:04]}  Kg6 {[%clk 0:00:03]} 51. Rd6+ {[%clk 0:00:04]} 1/2-1/2


[Site "https://www.chess.com"]

[Event "Titled Tuesday Blitz May 10 Early 2022"]
[White "talman67"]
[Black "Perez Rodriguez, Jennifer"]
[BlackFideId "3507831"]
[WhiteElo "2211"]
[BlackElo "2170"]
[Result "1-0"]
[Round "04"]
[TimeControl "180+1"]
[Date "2022.05.11"]
[WhiteClock "0:00:12"]
[BlackClock "0:00:12"]

1. e4 {[%clk 0:03:00]}  e5 {[%clk 0:02:58]} 2. Nf3 {[%clk 0:02:57]}  Nc6 {[%clk 0:02:59]} 3. Bb5 {[%clk 0:02:57]}  f5 {[%clk 0:02:58]} 4. d3 {[%clk 0:02:56]}  fxe4 {[%clk 0:02:58]} 5. dxe4 {[%clk 0:02:57]}  Nf6 {[%clk 0:02:58]} 6. O-O {[%clk 0:02:58]}  Bc5 {[%clk 0:02:57]} 7. Qd3 {[%clk 0:02:57]}  d6 {[%clk 0:02:57]} 8. a3 {[%clk 0:02:51]}  O-O {[%clk 0:02:56]} 9. Bc4+ {[%clk 0:02:37]}  Kh8 {[%clk 0:02:55]} 10. Nc3 {[%clk 0:02:38]}  Qe8 {[%clk 0:02:50]} 11. Bg5 {[%clk 0:02:38]}  Qg6 {[%clk 0:02:49]} 12. Bxf6 {[%clk 0:02:36]}  gxf6 {[%clk 0:02:45]} 13. Nh4 {[%clk 0:02:34]}  Qh5 {[%clk 0:02:45]} 14. Nf5 {[%clk 0:02:33]}  Nd4 {[%clk 0:02:43]} 15. Ng3 {[%clk 0:02:25]}  Qg6 {[%clk 0:02:39]} 16. Nd5 {[%clk 0:02:25]}  c6 {[%clk 0:02:18]} 17. Ne7 {[%clk 0:02:17]}  Qe8 {[%clk 0:02:02]} 18. Nxc8 {[%clk 0:02:15]}  Rxc8 {[%clk 0:02:02]} 19. c3 {[%clk 0:02:12]}  Ne6 {[%clk 0:02:02]} 20. b4 {[%clk 0:02:12]}  Nf4 {[%clk 0:02:01]} 21. Qd1 {[%clk 0:02:09]}  Bb6 {[%clk 0:01:49]} 22. Nf5 {[%clk 0:02:09]}  Rd8 {[%clk 0:01:45]} 23. Qg4 {[%clk 0:02:02]}  Qg6 {[%clk 0:01:42]} 24. Qf3 {[%clk 0:01:43]}  Rd7 {[%clk 0:01:30]} 25. g3 {[%clk 0:01:40]}  d5 {[%clk 0:01:30]} 26. Bb3 {[%clk 0:01:33]}  Nh3+ {[%clk 0:01:15]} 27. Kg2 {[%clk 0:01:30]}  Ng5 {[%clk 0:01:16]} 28. Qd3 {[%clk 0:01:07]}  Nxe4 {[%clk 0:01:15]} 29. Nh4 {[%clk 0:01:05]}  Qh5 {[%clk 0:01:06]} 30. f3 {[%clk 0:01:04]}  Ng5 {[%clk 0:01:02]} 31. Qf5 {[%clk 0:01:04]}  Qf7 {[%clk 0:00:50]} 32. Rae1 {[%clk 0:00:59]}  Ne6 {[%clk 0:00:48]} 33. f4 {[%clk 0:00:53]}  e4 {[%clk 0:00:46]} 34. Rxe4 {[%clk 0:00:49]}  dxe4 {[%clk 0:00:38]} 35. Bxe6 {[%clk 0:00:50]}  Rd2+ {[%clk 0:00:38]} 36. Kh3 {[%clk 0:00:50]}  Qg7 {[%clk 0:00:36]} 37. Qh5 {[%clk 0:00:40]}  e3 {[%clk 0:00:34]} 38. Bf5 {[%clk 0:00:34]}  Rfd8 {[%clk 0:00:24]} 39. a4 {[%clk 0:00:23]}  Re8 {[%clk 0:00:20]} 40. Qxe8+ {[%clk 0:00:21]}  Qg8 {[%clk 0:00:20]} 41. Qh5 {[%clk 0:00:15]}  e2 {[%clk 0:00:19]} 42. Re1 {[%clk 0:00:15]}  Bf2 {[%clk 0:00:20]} 43. Rxe2 {[%clk 0:00:15]}  Rxe2 {[%clk 0:00:20]} 44. Qxe2 {[%clk 0:00:16]}  Bb6 {[%clk 0:00:20]} 45. Qe7 {[%clk 0:00:15]}  Bf2 {[%clk 0:00:18]} 46. Qxf6+ {[%clk 0:00:15]}  Qg7 {[%clk 0:00:18]} 47. Qxg7+ {[%clk 0:00:13]}  Kxg7 {[%clk 0:00:18]} 48. Kg2 {[%clk 0:00:14]}  Be1 {[%clk 0:00:18]} 49. c4 {[%clk 0:00:14]}  Bxb4 {[%clk 0:00:18]} 50. Kf3 {[%clk 0:00:15]}  Bc5 {[%clk 0:00:17]} 51. Bc8 {[%clk 0:00:14]}  b6 {[%clk 0:00:17]} 52. Bb7 {[%clk 0:00:14]}  Bg1 {[%clk 0:00:17]} 53. Bxc6 {[%clk 0:00:14]}  Kf6 {[%clk 0:00:15]} 54. Be4 {[%clk 0:00:12]}  h6 {[%clk 0:00:14]} 55. h3 {[%clk 0:00:12]}  Bc5 {[%clk 0:00:13]} 56. Nf5 {[%clk 0:00:12]}  h5 {[%clk 0:00:13]} 57. g4 {[%clk 0:00:12]}  h4 {[%clk 0:00:13]} 58. g5+ {[%clk 0:00:12]}  Kf7 {[%clk 0:00:13]} 59. Kg4 {[%clk 0:00:13]}  Bf2 {[%clk 0:00:12]} 60. Nxh4 {[%clk 0:00:12]} 1-0


[Site "https://www.chess.com"]

[Event "Titled Tuesday Blitz May 10 Early 2022"]
[White "Aaditya Dhingra"]
[Black "Qashashvili, Alexandre"]
[WhiteFideId "25678191"]
[BlackFideId "13600842"]
[WhiteElo "1849"]
[BlackElo "2316"]
[Result "1-0"]
[Round "05"]
[TimeControl "180+1"]
[Date "2022.05.11"]
[WhiteClock "0:01:57"]
[BlackClock "0:01:02"]

1. d4 {[%clk 0:02:54]}  c6 {[%clk 0:03:00]} 2. c4 {[%clk 0:02:52]}  d5 {[%clk 0:02:59]} 3. Nc3 {[%clk 0:02:52]}  Nf6 {[%clk 0:02:58]} 4. Nf3 {[%clk 0:02:51]}  Bf5 {[%clk 0:02:58]} 5. g3 {[%clk 0:02:49]}  e6 {[%clk 0:02:58]} 6. Bg2 {[%clk 0:02:49]}  Ne4 {[%clk 0:02:58]} 7. O-O {[%clk 0:02:49]}  h6 {[%clk 0:02:57]} 8. Be3 {[%clk 0:02:42]}  Nd7 {[%clk 0:02:56]} 9. Nxe4 {[%clk 0:02:37]}  Bxe4 {[%clk 0:02:56]} 10. Nd2 {[%clk 0:02:35]}  Bxg2 {[%clk 0:02:55]} 11. Kxg2 {[%clk 0:02:36]}  Be7 {[%clk 0:02:47]} 12. f3 {[%clk 0:02:34]}  O-O {[%clk 0:02:47]} 13. Bf2 {[%clk 0:02:34]}  f5 {[%clk 0:02:40]} 14. Qc2 {[%clk 0:02:32]}  Rc8 {[%clk 0:02:38]} 15. c5 {[%clk 0:02:31]}  e5 {[%clk 0:02:35]} 16. e3 {[%clk 0:02:28]}  e4 {[%clk 0:02:34]} 17. f4 {[%clk 0:02:25]}  b5 {[%clk 0:02:31]} 18. a4 {[%clk 0:02:11]}  a6 {[%clk 0:02:29]} 19. axb5 {[%clk 0:02:10]}  axb5 {[%clk 0:02:30]} 20. Ra6 {[%clk 0:02:10]}  Qc7 {[%clk 0:02:30]} 21. Rfa1 {[%clk 0:02:08]}  Rb8 {[%clk 0:02:29]} 22. Nb3 {[%clk 0:02:06]}  Rfc8 {[%clk 0:01:38]} 23. Qd1 {[%clk 0:02:05]}  Bd8 {[%clk 0:01:27]} 24. Qh5 {[%clk 0:02:01]}  Nf6 {[%clk 0:01:09]} 25. Qxf5 {[%clk 0:01:58]}  Qb7 {[%clk 0:01:02]} 26. Ra7 {[%clk 0:01:57]} 1-0


[Site "https://www.chess.com"]

[Event "Titled Tuesday Blitz May 10 Early 2022"]
[White "Andreikin, Dmitry"]
[Black "Kamsky, Gata"]
[WhiteFideId "4158814"]
[BlackFideId "2000024"]
[WhiteElo "2736"]
[BlackElo "2645"]
[Result "1-0"]
[Round "05"]
[TimeControl "180+1"]
[Date "2022.05.10"]
[WhiteClock "0:00:04"]
[BlackClock "0:00:02"]

1. d4 {[%clk 0:03:00]}  Nf6 {[%clk 0:02:53]} 2. c4 {[%clk 0:03:01]}  e6 {[%clk 0:02:53]} 3. Nf3 {[%clk 0:03:01]}  b6 {[%clk 0:02:51]} 4. a3 {[%clk 0:02:58]}  Bb7 {[%clk 0:02:47]} 5. Nc3 {[%clk 0:02:58]}  d6 {[%clk 0:02:30]} 6. d5 {[%clk 0:02:56]}  e5 {[%clk 0:02:30]} 7. e4 {[%clk 0:02:54]}  Be7 {[%clk 0:02:28]} 8. Bd3 {[%clk 0:02:46]}  O-O {[%clk 0:02:28]} 9. b4 {[%clk 0:02:38]}  Bc8 {[%clk 0:02:23]} 10. h3 {[%clk 0:02:32]}  h6 {[%clk 0:02:17]} 11. Be3 {[%clk 0:02:32]}  Nh7 {[%clk 0:02:14]} 12. c5 {[%clk 0:02:28]}  dxc5 {[%clk 0:02:05]} 13. bxc5 {[%clk 0:02:28]}  Bxc5 {[%clk 0:02:05]} 14. Bxc5 {[%clk 0:02:26]}  bxc5 {[%clk 0:02:05]} 15. O-O {[%clk 0:02:27]}  Qe7 {[%clk 0:01:56]} 16. Qc2 {[%clk 0:02:21]}  c6 {[%clk 0:01:55]} 17. Rfc1 {[%clk 0:02:20]}  Nf6 {[%clk 0:01:54]} 18. Rab1 {[%clk 0:02:19]}  cxd5 {[%clk 0:01:38]} 19. Nxd5 {[%clk 0:02:17]}  Nxd5 {[%clk 0:01:38]} 20. exd5 {[%clk 0:02:18]}  Nd7 {[%clk 0:01:38]} 21. Nd2 {[%clk 0:02:02]}  Nb6 {[%clk 0:01:15]} 22. Be4 {[%clk 0:01:48]}  Rb8 {[%clk 0:00:44]} 23. Qxc5 {[%clk 0:01:44]}  Qxc5 {[%clk 0:00:43]} 24. Rxc5 {[%clk 0:01:45]}  Rd8 {[%clk 0:00:42]} 25. Nc4 {[%clk 0:01:38]}  f5 {[%clk 0:00:27]} 26. Bc2 {[%clk 0:01:31]}  e4 {[%clk 0:00:20]} 27. Ne5 {[%clk 0:01:24]}  Rb7 {[%clk 0:00:16]} 28. Nc6 {[%clk 0:01:19]}  Rd6 {[%clk 0:00:13]} 29. a4 {[%clk 0:01:09]}  Kf8 {[%clk 0:00:11]} 30. a5 {[%clk 0:01:06]}  Nd7 {[%clk 0:00:12]} 31. Rxb7 {[%clk 0:00:19]}  Bxb7 {[%clk 0:00:11]} 32. Rc3 {[%clk 0:00:20]}  Rxd5 {[%clk 0:00:11]} 33. Nd8 {[%clk 0:00:21]}  Ba6 {[%clk 0:00:10]} 34. Rc7 {[%clk 0:00:20]}  Bb5 {[%clk 0:00:06]} 35. Rxa7 {[%clk 0:00:16]}  Nc5 {[%clk 0:00:06]} 36. Nb7 {[%clk 0:00:12]}  Nxb7 {[%clk 0:00:06]} 37. Rxb7 {[%clk 0:00:12]}  Ba6 {[%clk 0:00:07]} 38. Ra7 {[%clk 0:00:11]}  Rxa5 {[%clk 0:00:07]} 39. g4 {[%clk 0:00:11]}  Ra1+ {[%clk 0:00:05]} 40. Kh2 {[%clk 0:00:12]}  Rc1 {[%clk 0:00:05]} 41. Bb3 {[%clk 0:00:09]}  Bc8 {[%clk 0:00:05]} 42. gxf5 {[%clk 0:00:07]}  Rc5 {[%clk 0:00:05]} 43. Rf7+ {[%clk 0:00:07]}  Ke8 {[%clk 0:00:05]} 44. Rxg7 {[%clk 0:00:07]}  Bxf5 {[%clk 0:00:05]} 45. Ra7 {[%clk 0:00:04]}  Rc3 {[%clk 0:00:05]} 46. Ba4+ {[%clk 0:00:04]}  Kf8 {[%clk 0:00:04]} 47. Ra6 {[%clk 0:00:05]}  Kg7 {[%clk 0:00:04]} 48. Be8 {[%clk 0:00:05]}  Rf3 {[%clk 0:00:03]} 49. Kg2 {[%clk 0:00:05]}  Bxh3+ {[%clk 0:00:02]} 50. Kg1 {[%clk 0:00:05]}  Bf5 {[%clk 0:00:03]} 51. Bh5 {[%clk 0:00:05]}  Rf4 {[%clk 0:00:03]} 52. Kg2 {[%clk 0:00:05]}  Bg4 {[%clk 0:00:03]} 53. Kg3 {[%clk 0:00:05]}  Rxf2 {[%clk 0:00:03]} 54. Rg6+ {[%clk 0:00:03]}  Kh7 {[%clk 0:00:02]} 55. Rxg4 {[%clk 0:00:04]}  Rf5 {[%clk 0:00:02]} 56. Bg6+ {[%clk 0:00:04]} 1-0


[Site "https://www.chess.com"]

[Event "Titled Tuesday Blitz May 10 Early 2022"]
[White "Babazada, Khazar"]
[Black "Meshkovs, Nikita"]
[WhiteFideId "13413554"]
[BlackFideId "11602740"]
[WhiteElo "2406"]
[BlackElo "2506"]
[Result "0-1"]
[Round "05"]
[TimeControl "180+1"]
[Date "2022.05.10"]
[WhiteClock "0:00:34"]
[BlackClock "0:00:23"]

1. Nf3 {[%clk 0:03:00]}  d5 {[%clk 0:02:58]} 2. g3 {[%clk 0:03:01]}  Nf6 {[%clk 0:02:57]} 3. Bg2 {[%clk 0:03:02]}  e6 {[%clk 0:02:57]} 4. O-O {[%clk 0:03:02]}  Be7 {[%clk 0:02:57]} 5. b3 {[%clk 0:03:02]}  a5 {[%clk 0:02:57]} 6. Bb2 {[%clk 0:03:03]}  a4 {[%clk 0:02:57]} 7. c4 {[%clk 0:03:01]}  a3 {[%clk 0:02:57]} 8. Bc3 {[%clk 0:02:58]}  O-O {[%clk 0:02:57]} 9. d3 {[%clk 0:02:58]}  c5 {[%clk 0:02:54]} 10. e3 {[%clk 0:02:59]}  dxc4 {[%clk 0:02:45]} 11. dxc4 {[%clk 0:02:51]}  Nc6 {[%clk 0:02:44]} 12. Qc2 {[%clk 0:02:51]}  Nb4 {[%clk 0:02:40]} 13. Bxb4 {[%clk 0:02:51]}  cxb4 {[%clk 0:02:41]} 14. Nbd2 {[%clk 0:02:51]}  Qc7 {[%clk 0:02:30]} 15. Rfd1 {[%clk 0:02:51]}  Bd7 {[%clk 0:02:27]} 16. Rac1 {[%clk 0:02:51]}  Bc6 {[%clk 0:02:27]} 17. Nd4 {[%clk 0:02:35]}  Bxg2 {[%clk 0:02:14]} 18. Kxg2 {[%clk 0:02:36]}  b6 {[%clk 0:02:14]} 19. N2f3 {[%clk 0:02:29]}  Qb7 {[%clk 0:02:11]} 20. Kg1 {[%clk 0:02:18]}  Rac8 {[%clk 0:02:00]} 21. Qe2 {[%clk 0:02:15]}  Ne4 {[%clk 0:01:55]} 22. Qf1 {[%clk 0:02:15]}  Nc3 {[%clk 0:01:51]} 23. Rd2 {[%clk 0:02:15]}  Rfd8 {[%clk 0:01:50]} 24. Qg2 {[%clk 0:02:12]}  Bf6 {[%clk 0:01:44]} 25. Rcc2 {[%clk 0:01:58]}  Rd7 {[%clk 0:01:32]} 26. g4 {[%clk 0:01:54]}  g6 {[%clk 0:01:28]} 27. h4 {[%clk 0:01:32]}  Rcd8 {[%clk 0:01:24]} 28. Nb5 {[%clk 0:01:23]}  Nxb5 {[%clk 0:00:53]} 29. cxb5 {[%clk 0:01:23]}  Bc3 {[%clk 0:00:53]} 30. Rxd7 {[%clk 0:01:18]}  Qxd7 {[%clk 0:00:54]} 31. Qf1 {[%clk 0:01:12]}  Qd5 {[%clk 0:00:55]} 32. Qe2 {[%clk 0:01:10]}  Qe4 {[%clk 0:00:49]} 33. Nh2 {[%clk 0:01:10]}  Rd5 {[%clk 0:00:44]} 34. Nf1 {[%clk 0:01:09]}  h5 {[%clk 0:00:40]} 35. gxh5 {[%clk 0:01:06]}  Qxh4 {[%clk 0:00:40]} 36. Ng3 {[%clk 0:01:00]}  gxh5 {[%clk 0:00:39]} 37. Qf3 {[%clk 0:00:58]}  Qh3 {[%clk 0:00:34]} 38. e4 {[%clk 0:00:39]}  Rg5 {[%clk 0:00:33]} 39. Qf4 {[%clk 0:00:38]}  Rg4 {[%clk 0:00:31]} 40. Qb8+ {[%clk 0:00:35]}  Kh7 {[%clk 0:00:30]} 41. Qc7 {[%clk 0:00:34]}  Rg7 {[%clk 0:00:23]} 0-1


[Site "https://www.chess.com"]

[Event "Titled Tuesday Blitz May 10 Early 2022"]
[White "Bach, Ngoc Thuy Duong"]
[Black "Piliczewski, Bogusz"]
[WhiteFideId "12408956"]
[BlackFideId "1104144"]
[WhiteElo "1862"]
[BlackElo "1896"]
[Result "1-0"]
[Round "05"]
[TimeControl "180+1"]
[Date "2022.05.11"]
[WhiteClock "0:00:02"]
[BlackClock "0:00:01"]

1. d4 {[%clk 0:03:00]}  d5 {[%clk 0:02:59]} 2. c4 {[%clk 0:03:00]}  c6 {[%clk 0:03:00]} 3. Nf3 {[%clk 0:02:58]}  Nf6 {[%clk 0:03:00]} 4. Nc3 {[%clk 0:02:56]}  e6 {[%clk 0:03:00]} 5. e3 {[%clk 0:02:55]}  Nbd7 {[%clk 0:03:01]} 6. Qc2 {[%clk 0:02:55]}  Bd6 {[%clk 0:02:59]} 7. b3 {[%clk 0:02:55]}  a6 {[%clk 0:02:53]} 8. Bb2 {[%clk 0:02:55]}  b5 {[%clk 0:02:51]} 9. Bd3 {[%clk 0:02:37]}  O-O {[%clk 0:02:38]} 10. O-O {[%clk 0:02:36]}  Bb7 {[%clk 0:02:23]} 11. Rad1 {[%clk 0:02:26]}  Qe7 {[%clk 0:02:20]} 12. Rfe1 {[%clk 0:01:52]}  Rfc8 {[%clk 0:02:18]} 13. c5 {[%clk 0:01:14]}  Bc7 {[%clk 0:02:13]} 14. e4 {[%clk 0:01:13]}  dxe4 {[%clk 0:02:06]} 15. Nxe4 {[%clk 0:01:14]}  Nxe4 {[%clk 0:02:06]} 16. Bxe4 {[%clk 0:01:15]}  Nf8 {[%clk 0:02:03]} 17. Bd3 {[%clk 0:01:07]}  Rd8 {[%clk 0:01:51]} 18. Qe2 {[%clk 0:01:00]}  Ba5 {[%clk 0:01:43]} 19. Rf1 {[%clk 0:00:59]}  Rd7 {[%clk 0:01:38]} 20. Ne5 {[%clk 0:00:56]}  Rdd8 {[%clk 0:01:32]} 21. Qf3 {[%clk 0:00:55]}  Rac8 {[%clk 0:01:22]} 22. Be4 {[%clk 0:00:52]}  Qe8 {[%clk 0:01:01]} 23. Bb1 {[%clk 0:00:41]}  Bc7 {[%clk 0:00:52]} 24. Ng4 {[%clk 0:00:39]}  Ng6 {[%clk 0:00:27]} 25. Rfe1 {[%clk 0:00:35]}  Qe7 {[%clk 0:00:20]} 26. b4 {[%clk 0:00:34]}  Qh4 {[%clk 0:00:19]} 27. g3 {[%clk 0:00:26]}  Qh3 {[%clk 0:00:17]} 28. Bd3 {[%clk 0:00:04]}  h5 {[%clk 0:00:09]} 29. Ne3 {[%clk 0:00:04]}  Nh4 {[%clk 0:00:01]} 30. Qh1 {[%clk 0:00:02]} 1-0


[Site "https://www.chess.com"]